bitfinex/quotes_BTCUSD_20250814
["timestamp","ask_amount","ask_price","bid_price","bid_amount"]
[1755155847768,0.44765325,121610.0,121600.0,0.98949846]
[1755155848101,0.44765325,121610.0,121600.0,0.72120478]
[1755155848284,0.44962325,121610.0,121600.0,0.84968478]
[1755155848646,0.44962325,121610.0,121600.0,1.01415846]
[1755155848849,0.44765325,121610.0,121600.0,1.38098324]
[1755155849061,0.44765325,121610.0,121600.0,1.50946324]
[1755155849270,0.44765325,121610.0,121600.0,0.86101846]
[1755155849465,0.44765325,121610.0,121600.0,1.48480324]
[1755155849773,0.44765325,121610.0,121600.0,1.01415846]
[1755155850234,0.44765325,121610.0,121600.0,0.84968478]
[1755155850441,0.44962325,121610.0,121600.0,0.84968478]
[1755155851494,0.44962325,121610.0,121600.0,1.01415846]
[1755155853558,0.44962325,121610.0,121600.0,1.01411846]
[1755155853774,0.44472325,121610.0,121600.0,1.50942324]
[1755155854751,0.44472325,121610.0,121600.0,1.84942324]
[1755155856877,0.44472325,121610.0,121600.0,1.95237575]
[1755155857297,0.44472325,121610.0,121600.0,1.82393575]
[1755155857498,0.44472325,121610.0,121600.0,1.95237575]
[1755155859527,0.18272325,121610.0,121600.0,1.95237575]
[1755155859932,0.18272325,121610.0,121600.0,2.03486018]
[1755155862599,0.18790325,121610.0,121600.0,0.96176619]
[1755155862801,0.18790325,121610.0,121600.0,1.95237575]
[1755155863207,0.18790325,121610.0,121600.0,0.96176619]
[1755155863348,0.18790325,121610.0,121600.0,1.95237575]
[1755155864284,0.18790325,121610.0,121600.0,0.96176619]
[1755155864455,0.18790325,121610.0,121600.0,1.95237575]
[1755155865216,0.18790325,121610.0,121600.0,0.79725251]
[1755155865404,0.18790325,121610.0,121600.0,1.29255729]
[1755155865620,0.18790325,121610.0,121600.0,0.79725251]
[1755155865829,0.18790325,121610.0,121600.0,1.18960478]
[1755155867441,0.18790325,121610.0,121600.0,0.85877368]
[1755155867654,0.18790325,121610.0,121600.0,1.95233575]
[1755155868058,0.18790325,121610.0,121600.0,1.97519032]
[1755155868275,0.18790325,121610.0,121600.0,1.95233575]
[1755155868878,0.18790325,121610.0,121600.0,1.45703097]
[1755155869099,0.18790325,121610.0,121600.0,1.29255729]
[1755155869556,0.18790325,121610.0,121600.0,1.18960478]
[1755155870514,0.18790325,121610.0,121600.0,0.6943]
[1755155870718,0.18790325,121610.0,121600.0,1.06120478]
[1755155871106,0.18790325,121610.0,121600.0,1.18952478]
[1755155871322,0.18790325,121610.0,121600.0,1.09882262]
[1755155871478,0.18790325,121610.0,121600.0,1.22714262]
[1755155871898,0.18790325,121610.0,121600.0,1.09882262]
[1755155872301,0.18790325,121610.0,121600.0,1.22714262]
[1755155872507,0.18790325,121610.0,121600.0,1.09882262]
[1755155872662,0.18790325,121610.0,121600.0,1.22714262]
[1755155873281,0.18790325,121610.0,121600.0,1.75860108]
[1755155873710,0.18587325,121610.0,121600.0,1.98987359]
[1755155873937,0.18272325,121610.0,121600.0,1.98987359]
[1755155874399,0.18272325,121610.0,121600.0,1.86155359]
[1755155874640,0.18272325,121610.0,121600.0,1.98987359]
[1755155877613,0.18272325,121610.0,121600.0,0.99926403]
[1755155877762,0.18272325,121610.0,121600.0,1.98987359]
[1755155877966,0.18272325,121610.0,121600.0,2.07235802]
[1755155879281,0.18272325,121610.0,121600.0,1.96940551]
[1755155879526,0.18272325,121610.0,121600.0,2.07280178]
[1755155880130,0.18272325,121610.0,121600.0,1.94448178]
[1755155880328,0.18272325,121610.0,121600.0,1.84108551]
[1755155880551,0.18272325,121610.0,121600.0,1.96936551]
[1755155880908,0.68272325,121610.0,121600.0,1.96936551]
[1755155881121,0.1,121610.0,121600.0,1.84108551]
[1755155881297,0.1,121610.0,121600.0,2.33639029]
[1755155881503,0.1,121610.0,121600.0,2.48173994]
[1755155881928,0.1,121610.0,121600.0,2.47973994]
[1755155882126,0.1,121610.0,121600.0,2.35145994]
[1755155882339,0.1,121610.0,121600.0,2.62464914]
[1755155882713,0.1,121610.0,121600.0,2.62764914]
[1755155882940,1e-08,121610.0,121600.0,2.61076914]
[1755155883182,1e-08,121610.0,121600.0,2.55013748]
[1755155883390,1e-08,121610.0,121600.0,2.69748713]
[1755155883504,1e-08,121610.0,121600.0,2.59413994]
[1755155883728,0.06999771,121650.0,121640.0,0.16441959]
[1755155883943,0.15272096,121650.0,121640.0,1.54547111]
[1755155884562,0.15272096,121650.0,121640.0,1.69839911]
[1755155885098,0.15272096,121650.0,121640.0,1.69835911]
[1755155885730,0.15472096,121650.0,121640.0,1.69835911]
[1755155885933,0.15472096,121650.0,121640.0,1.57011911]
[1755155886170,0.15472096,121650.0,121640.0,1.69835911]
[1755155886523,0.15572096,121650.0,121640.0,1.7353737]
[1755155887473,0.15472096,121650.0,121640.0,1.7353737]
[1755155888298,0.15272096,121650.0,121640.0,1.7353737]
[1755155888442,0.15272096,121650.0,121640.0,1.6071337]
[1755155888644,0.15272096,121650.0,121640.0,1.7353737]
[1755155888841,0.15272096,121650.0,121640.0,0.74472414]
[1755155889056,0.15272096,121650.0,121640.0,1.7353337]
[1755155889528,0.15475096,121650.0,121640.0,1.7353337]
[1755155891581,0.15475096,121650.0,121640.0,0.74472414]
[1755155891783,0.15475096,121650.0,121640.0,1.7353337]
[1755155895523,0.15475096,121650.0,121640.0,1.7253337]
[1755155896224,0.08790325,121650.0,121640.0,1.7253337]
[1755155897112,0.08272325,121650.0,121640.0,2.09243848]
[1755155897328,0.08272325,121650.0,121640.0,2.22059848]
[1755155897986,0.08272325,121650.0,121640.0,1.7252937]
[1755155899663,0.08588325,121650.0,121640.0,1.7252937]
[1755155899888,0.08791325,121650.0,121640.0,1.5971337]
[1755155900098,0.06684771,121670.0,121660.0,0.49695256]
[1755155900099,0.07000771,121670.0,121660.0,0.49695256]
[1755155900324,0.15476096,121670.0,121660.0,1.87897686]
[1755155901076,0.15273096,121670.0,121660.0,1.87893686]
[1755155901339,0.65373096,121670.0,121660.0,1.87893686]
[1755155901480,0.15373096,121670.0,121660.0,1.90357986]
[1755155901680,0.65373096,121670.0,121660.0,1.90357986]
[1755155901890,0.001,121670.0,121660.0,1.90357986]
[1755155902076,0.06684771,121690.0,121680.0,0.50436554]
[1755155902077,0.00316,121690.0,121680.0,0.50436554]
[1755155902290,0.08791325,121690.0,121680.0,1.50649477]
[1755155902534,0.08791325,121690.0,121680.0,1.63461477]
[1755155902747,0.08791325,121690.0,121680.0,1.50649477]
[1755155902913,0.08791325,121690.0,121680.0,1.63461477]
[1755155903286,0.08791325,121690.0,121680.0,1.50649477]
[1755155903489,0.08791325,121690.0,121680.0,1.63461477]
[1755155904113,0.08891325,121690.0,121680.0,1.63461477]
[1755155904393,0.08891325,121690.0,121680.0,1.64523821]
[1755155904606,0.08891325,121690.0,121680.0,0.02214311]
[1755155904818,0.11274325,121690.0,121680.0,0.63404822]
[1755155905058,0.11374325,121690.0,121680.0,0.97404822]
[1755155905290,0.18059096,121690.0,121680.0,1.01176315]
[1755155905489,0.18059096,121690.0,121680.0,1.50706793]
[1755155907352,0.18059096,121690.0,121680.0,1.01176315]
[1755155909275,0.18059096,121690.0,121680.0,1.50706793]
[1755155909739,0.11374325,121690.0,121680.0,1.58951236]
[1755155909945,0.11374325,121690.0,121680.0,1.46143236]
[1755155910155,0.11374325,121690.0,121680.0,1.58951236]
[1755155910875,0.08991325,121690.0,121680.0,1.58951236]
[1755155911583,0.08991325,121690.0,121680.0,1.7538779]
[1755155911788,0.08991325,121690.0,121680.0,1.6257979]
[1755155912001,0.08991325,121690.0,121680.0,1.7538779]
[1755155912591,0.08991325,121690.0,121680.0,1.7785209]
[1755155913458,0.08991325,121690.0,121680.0,1.6504409]
[1755155913652,0.08788325,121690.0,121680.0,1.7784809]
[1755155913857,0.08472325,121690.0,121680.0,1.7784809]
[1755155914080,0.08472325,121690.0,121680.0,1.6504409]
[1755155914284,0.08472325,121690.0,121680.0,1.7784809]
[1755155915692,0.08472325,121690.0,121680.0,2.27378568]
[1755155916109,0.08472325,121690.0,121680.0,1.7784809]
[1755155916780,0.08978325,121690.0,121680.0,1.6504409]
[1755155916993,0.08978325,121690.0,121680.0,1.7784809]
[1755155917202,0.08878325,121690.0,121680.0,1.7784809]
[1755155917546,0.08778325,121690.0,121680.0,1.7784809]
[1755155919270,0.08569325,121690.0,121680.0,1.6504409]
[1755155919503,0.08569325,121690.0,121680.0,1.7784409]
[1755155920736,0.08272325,121690.0,121680.0,1.7784409]
[1755155922061,0.05735096,121710.0,121700.0,0.50433853]
[1755155922267,0.14216421,121710.0,121700.0,1.13916298]
[1755155922823,0.14216421,121710.0,121700.0,1.01116298]
[1755155923025,0.14216421,121710.0,121700.0,1.13916298]
[1755155923802,0.14416421,121710.0,121700.0,1.13916298]
[1755155924013,0.14813421,121710.0,121700.0,1.13916298]
[1755155925184,0.14813421,121710.0,121700.0,1.01116298]
[1755155925392,0.14813421,121710.0,121700.0,1.13912298]
[1755155925766,0.09078325,121710.0,121700.0,1.14050298]
[1755155926162,0.08869325,121710.0,121700.0,1.66044576]
[1755155926371,0.08572325,121710.0,121700.0,1.66044576]
[1755155927155,0.08472325,121710.0,121700.0,1.66044576]
[1755155927567,0.08372325,121710.0,121700.0,1.66044576]
[1755155927967,0.08472325,121710.0,121700.0,1.66044576]
[1755155928189,0.08372325,121710.0,121700.0,1.66044576]
[1755155928446,0.08472325,121710.0,121700.0,1.66044576]
[1755155930182,0.08978325,121710.0,121700.0,1.16376098]
[1755155930392,0.08978325,121710.0,121700.0,1.65906576]
[1755155930592,0.08978325,121710.0,121700.0,1.16376098]
[1755155930770,0.08978325,121710.0,121700.0,1.03580098]
[1755155931008,0.08978325,121710.0,121700.0,1.16372098]
[1755155932473,0.08978325,121710.0,121700.0,0.99938245]
[1755155934113,0.08978325,121710.0,121700.0,1.16372098]
[1755155934249,0.08978325,121710.0,121700.0,1.03580098]
[1755155934506,0.08978325,121710.0,121700.0,1.16510098]
[1755155934876,0.08978325,121710.0,121700.0,1.36214098]
[1755155936209,0.08978325,121710.0,121700.0,1.23422098]
[1755155936417,0.08978325,121710.0,121700.0,1.36214098]
[1755155936929,0.08978325,121710.0,121700.0,0.8668362]
[1755155937086,0.08978325,121710.0,121700.0,1.36214098]
[1755155937838,0.08978325,121710.0,121700.0,1.23422098]
[1755155938042,0.08978325,121710.0,121700.0,1.36076098]
[1755155939686,0.08978325,121710.0,121700.0,0.8654562]
[1755155939903,0.08978325,121710.0,121700.0,1.36076098]
[1755155940313,0.08978325,121710.0,121700.0,0.8654562]
[1755155940515,0.08978325,121710.0,121700.0,1.36076098]
[1755155941405,0.08978325,121710.0,121700.0,1.19642245]
[1755155941821,0.08978325,121710.0,121700.0,0.57319767]
[1755155942091,0.08978325,121710.0,121700.0,1.16022478]
[1755155942658,0.08978325,121710.0,121700.0,0.53704]
[1755155942880,0.17952096,121710.0,121700.0,0.32492]
[1755155943233,0.17952096,121710.0,121700.0,1.16022478]
[1755155943440,0.17952096,121710.0,121700.0,0.82022478]
[1755155943668,0.17952096,121710.0,121700.0,1.16022478]
[1755155943878,0.17952096,121710.0,121700.0,0.82022478]
[1755155944097,0.34384599,121710.0,121700.0,0.32492]
[1755155945250,0.34384599,121710.0,121700.0,0.19704]
[1755155945251,0.83915077,121710.0,121700.0,0.19704]
[1755155945461,0.83915077,121710.0,121700.0,0.32492]
[1755155945607,0.34384599,121710.0,121700.0,0.32492]
[1755155945814,0.34284599,121710.0,121700.0,0.19704]
[1755155946075,0.34284599,121710.0,121700.0,0.32492]
[1755155946288,0.34484599,121710.0,121700.0,0.32492]
[1755155946775,0.34484599,121710.0,121700.0,0.19704]
[1755155946917,0.34384599,121710.0,121700.0,0.32492]
[1755155947117,0.27699828,121710.0,121700.0,0.32492]
[1755155947317,0.27899828,121710.0,121700.0,0.32492]
[1755155948520,0.30364428,121710.0,121700.0,0.32492]
[1755155950158,0.30364428,121710.0,121700.0,0.32488]
[1755155950361,0.11467325,121710.0,121700.0,0.69234478]
[1755155950543,0.12267325,121710.0,121700.0,0.82018478]
[1755155951154,0.11867325,121710.0,121700.0,0.82018478]
[1755155951363,0.11967325,121710.0,121700.0,0.32488]
[1755155951527,0.12067325,121710.0,121700.0,0.82018478]
[1755155951723,0.09778325,121710.0,121700.0,0.82018478]
[1755155951933,0.09778325,121710.0,121700.0,1.24220326]
[1755155952553,0.09778325,121710.0,121700.0,1.24358326]
[1755155952762,0.09778325,121710.0,121700.0,0.74827848]
[1755155952986,0.09678325,121710.0,121700.0,0.74827848]
[1755155953161,0.09578325,121710.0,121700.0,1.24358326]
[1755155953976,0.09369325,121710.0,121700.0,1.24358326]
[1755155954184,0.09072325,121710.0,121700.0,1.24358326]
[1755155956940,0.09391325,121710.0,121700.0,1.24358326]
[1755155958366,0.09072325,121710.0,121700.0,1.40788179]
[1755155958848,0.09072325,121710.0,121700.0,1.28008179]
[1755155959024,0.08272325,121710.0,121700.0,1.28094179]
[1755155959164,0.08272325,121710.0,121700.0,1.40874179]
[1755155959774,0.08272325,121710.0,121700.0,1.43337779]
[1755155960367,0.08272325,121710.0,121700.0,1.92868257]
[1755155960535,0.08272325,121710.0,121700.0,1.43337779]
[1755155961229,0.08272325,121710.0,121700.0,1.92868257]
[1755155961574,0.08272325,121710.0,121700.0,1.30557779]
[1755155961801,0.08272325,121710.0,121700.0,1.43337779]
[1755155963515,0.08272325,121710.0,121700.0,1.43251779]
[1755155964152,0.08591325,121710.0,121700.0,1.43251779]
[1755155964579,0.08272325,121710.0,121700.0,1.43251779]
[1755155965504,0.08591325,121710.0,121700.0,1.30471779]
[1755155965716,0.08786325,121710.0,121700.0,1.43247779]
[1755155965923,0.08786325,121710.0,121700.0,1.43109779]
[1755155966142,0.08786325,121710.0,121700.0,1.05698078]
[1755155966340,0.08786325,121710.0,121700.0,0.19704]
[1755155966585,0.15471096,121710.0,121700.0,0.82010478]
[1755155966804,0.15471096,121710.0,121700.0,1.16010478]
[1755155966805,0.08786325,121710.0,121700.0,1.16010478]
[1755155967009,0.08786325,121710.0,121700.0,0.74728443]
[1755155967228,0.15471096,121710.0,121700.0,1.11482921]
[1755155967448,0.15471096,121710.0,121700.0,1.24258921]
[1755155968353,0.15471096,121710.0,121700.0,1.16010478]
[1755155968584,0.15471096,121710.0,121700.0,0.53704]
[1755155968776,0.34349599,121710.0,121700.0,0.19704]
[1755155968984,0.17917096,121710.0,121700.0,0.3248]
[1755155969839,0.17917096,121710.0,121700.0,0.6648]
[1755155970074,0.34349599,121710.0,121700.0,0.53704]
[1755155970282,0.39427686,121710.0,121700.0,0.19704]
[1755155970505,0.39427686,121710.0,121700.0,0.32476]
[1755155970711,0.39427686,121710.0,121700.0,0.19704]
[1755155970924,0.88958164,121710.0,121700.0,0.32476]
[1755155971135,0.39427686,121710.0,121700.0,0.32476]
[1755155971548,0.39427686,121710.0,121700.0,0.19704]
[1755155971754,0.39427686,121710.0,121700.0,0.32476]
[1755155971956,0.39627686,121710.0,121700.0,0.32476]
[1755155972160,0.39827686,121710.0,121700.0,0.32476]
[1755155973430,0.90158164,121710.0,121700.0,0.19704]
[1755155973633,0.90158164,121710.0,121700.0,0.32476]
[1755155973860,1.40158164,121710.0,121700.0,0.32476]
[1755155973988,0.90627686,121710.0,121700.0,0.19704]
[1755155974360,1.40158164,121710.0,121700.0,0.32476]
[1755155974560,0.90627686,121710.0,121700.0,0.32476]
[1755155974770,1.40158164,121710.0,121700.0,0.32476]
[1755155975984,1.42622964,121710.0,121700.0,0.32476]
[1755155976327,1.42622964,121710.0,121700.0,0.19704]
[1755155976532,1.42622964,121710.0,121700.0,0.32476]
[1755155976735,1.45122964,121710.0,121700.0,0.32476]
[1755155977453,0.95592486,121710.0,121700.0,0.32476]
[1755155977641,1.45122964,121710.0,121700.0,0.32476]
[1755155977825,1.44322964,121710.0,121700.0,0.32476]
[1755155979397,0.88107715,121710.0,121700.0,0.19704]
[1755155979607,1.37638193,121710.0,121700.0,0.32476]
[1755155979803,0.83029628,121710.0,121700.0,0.32476]
[1755155980253,0.83029628,121710.0,121700.0,0.19704]
[1755155980463,0.80529628,121710.0,121700.0,0.32476]
[1755155980665,0.83029628,121710.0,121700.0,0.32476]
[1755155982254,0.78883628,121710.0,121700.0,0.69234478]
[1755155982462,0.62451125,121710.0,121700.0,0.82006478]
[1755155982881,0.12451125,121710.0,121700.0,0.69372478]
[1755155983065,0.09986325,121710.0,121700.0,0.82144478]
[1755155983296,0.09986325,121710.0,121700.0,0.69234478]
[1755155983491,0.80899306,121710.0,121700.0,0.19704]
[1755155983632,0.80899306,121710.0,121700.0,0.32476]
[1755155983849,1.39147749,121710.0,121700.0,0.32476]
[1755155985247,1.36871749,121710.0,121700.0,0.32476]
[1755155985453,1.39371749,121710.0,121700.0,0.32476]
[1755155985888,0.89841271,121710.0,121700.0,0.32476]
[1755155986096,1.39371749,121710.0,121700.0,0.32476]
[1755155986754,0.87341271,121710.0,121700.0,0.19704]
[1755155986965,0.76642828,121710.0,121700.0,0.69372478]
[1755155987137,0.76642828,121710.0,121700.0,0.19842]
[1755155987368,0.76642828,121710.0,121700.0,0.32614]
[1755155987822,0.60210325,121710.0,121700.0,0.32614]
[1755155987958,0.10210325,121710.0,121700.0,0.32614]
[1755155988921,0.78837465,121710.0,121700.0,0.19704]
[1755155989087,0.83787465,121710.0,121700.0,0.19704]
[1755155989287,0.83787465,121710.0,121700.0,0.32476]
[1755155989494,0.81287465,121710.0,121700.0,0.19704]
[1755155989703,0.81287465,121710.0,121700.0,0.32476]
[1755155989884,1.33787465,121710.0,121700.0,0.32476]
[1755155990532,0.81592828,121710.0,121700.0,0.32476]
[1755155990685,1.31123306,121710.0,121700.0,0.32476]
[1755155990896,1.33588206,121710.0,121700.0,0.32476]
[1755155991798,1.33588206,121710.0,121700.0,0.32472]
[1755155992022,1.33588206,121710.0,121700.0,0.19704]
[1755155992223,1.18506171,121710.0,121700.0,0.32472]
[1755155992425,1.68036649,121710.0,121700.0,0.32472]
[1755156001574,1.41836649,121710.0,121700.0,0.32472]
[1755156003476,0.92306171,121710.0,121700.0,0.32472]
[1755156003886,1.41836649,121710.0,121700.0,0.32472]
[1755156004613,0.89856171,121710.0,121700.0,0.32472]
[1755156004788,1.31138206,121710.0,121700.0,0.32472]
[1755156005112,0.81607728,121710.0,121700.0,0.19704]
[1755156005538,1.31138206,121710.0,121700.0,0.32468]
[1755156005957,0.79107728,121710.0,121700.0,0.32606]
[1755156006170,0.78593728,121710.0,121700.0,0.19842]
[1755156006325,0.76128828,121710.0,121700.0,0.69458478]
[1755156006536,0.76128828,121710.0,121700.0,0.32692]
[1755156006738,0.76128828,121710.0,121700.0,0.32606]
[1755156006927,0.26128828,121710.0,121700.0,0.32606]
[1755156010674,0.09696325,121710.0,121700.0,0.69458478]
[1755156010873,0.09696325,121710.0,121700.0,0.89168326]
[1755156011461,0.09496325,121710.0,121700.0,0.89168326]
[1755156011823,0.09596325,121710.0,121700.0,0.89168326]
[1755156012658,0.09396325,121710.0,121700.0,0.89168326]
[1755156013103,0.09496325,121710.0,121700.0,0.89168326]
[1755156015894,0.09496325,121710.0,121700.0,0.89164326]
[1755156016108,0.09496325,121710.0,121700.0,0.76404326]
[1755156016302,0.09496325,121710.0,121700.0,1.10404326]
[1755156016502,0.09496325,121710.0,121700.0,0.73633848]
[1755156016731,0.09496325,121710.0,121700.0,1.23164326]
[1755156016931,0.09396325,121710.0,121700.0,1.23164326]
[1755156017155,0.09396325,121710.0,121700.0,1.10404326]
[1755156017342,0.09296325,121710.0,121700.0,1.23164326]
[1755156017994,0.09296325,121710.0,121700.0,0.73633848]
[1755156018205,0.09296325,121710.0,121700.0,1.16218478]
[1755156018639,0.09296325,121710.0,121700.0,1.16318478]
[1755156018845,0.09296325,121710.0,121700.0,0.66702]
[1755156019058,0.09296325,121710.0,121700.0,1.16232478]
[1755156021559,0.09615325,121710.0,121700.0,1.16232478]
[1755156021834,0.09821325,121710.0,121700.0,0.66702]
[1755156022072,0.09296325,121710.0,121700.0,0.66702]
[1755156025573,0.08496325,121710.0,121700.0,0.66702]
[1755156028659,0.08815325,121710.0,121700.0,0.66702]
[1755156029624,0.75784306,121710.0,121700.0,0.19804]
[1755156029823,0.75784306,121710.0,121700.0,0.32556]
[1755156030026,0.9071752,121710.0,121700.0,0.19804]
[1755156030230,0.9071752,121710.0,121700.0,0.32556]
[1755156030405,0.17544768,121710.0,121700.0,0.69472478]
[1755156030619,0.09296325,121710.0,121700.0,0.32694]
[1755156030860,0.09296325,121710.0,121700.0,0.32594]
[1755156031037,0.09696325,121710.0,121700.0,0.69372478]
[1755156031244,0.09696325,121710.0,121700.0,0.82124478]
[1755156031478,0.09496325,121710.0,121700.0,0.82124478]
[1755156031651,0.09596325,121710.0,121700.0,0.82124478]
[1755156031983,0.09696325,121710.0,121700.0,0.82210478]
[1755156032625,0.09396325,121710.0,121700.0,0.82210478]
[1755156032798,0.09396325,121710.0,121700.0,0.82124478]
[1755156033267,0.09296325,121710.0,121700.0,0.82124478]
[1755156034338,0.09296325,121710.0,121700.0,1.28140774]
[1755156034554,0.09296325,121710.0,121700.0,1.40892774]
[1755156035174,0.09296325,121710.0,121700.0,0.78610296]
[1755156035374,0.09296325,121710.0,121700.0,1.40892774]
[1755156036047,0.09296325,121710.0,121700.0,1.40992774]
[1755156038855,0.09296325,121710.0,121700.0,1.40906774]
[1755156039192,0.09296325,121710.0,121700.0,1.28154774]
[1755156039364,0.09296325,121710.0,121700.0,1.40902774]
[1755156040243,0.09296325,121710.0,121700.0,1.40988774]
[1755156040632,0.09296325,121710.0,121700.0,1.28240774]
[1755156040801,0.09296325,121710.0,121700.0,1.40988774]
[1755156041788,0.09296325,121710.0,121700.0,1.28240774]
[1755156041971,0.09296325,121710.0,121700.0,1.40902774]
[1755156042386,0.09806325,121710.0,121700.0,0.53804]
[1755156042513,0.09806325,121710.0,121700.0,0.32552]
[1755156042938,0.09806325,121710.0,121700.0,0.82082478]
[1755156043143,0.09806325,121710.0,121700.0,0.69472478]
[1755156043364,0.09596325,121710.0,121700.0,0.82220478]
[1755156044722,0.09296325,121710.0,121700.0,0.90468921]
[1755156044939,0.09296325,121710.0,121700.0,1.06902774]
[1755156045366,0.09296325,121710.0,121700.0,0.94154774]
[1755156045576,0.09296325,121710.0,121700.0,1.06988774]
[1755156046403,0.09296325,121710.0,121700.0,1.28240774]
[1755156046707,0.09296325,121710.0,121700.0,1.40988774]
[1755156047469,0.08496325,121710.0,121700.0,1.40988774]
[1755156048706,0.08496325,121710.0,121700.0,1.40984774]
[1755156048971,0.08496325,121710.0,121700.0,1.28240774]
[1755156049134,0.08496325,121710.0,121700.0,1.40984774]
[1755156049352,0.08496325,121710.0,121700.0,1.28240774]
[1755156049575,0.08496325,121710.0,121700.0,1.40984774]
[1755156049981,0.08496325,121710.0,121700.0,1.28240774]
[1755156050210,0.08496325,121710.0,121700.0,1.40952113]
[1755156050429,0.08496325,121710.0,121700.0,1.77738591]
[1755156050636,0.08496325,121710.0,121700.0,1.40952113]
[1755156051448,0.08496325,121710.0,121700.0,1.90482591]
[1755156051595,0.08496325,121710.0,121700.0,1.40952113]
[1755156052197,0.08496325,121710.0,121700.0,1.90482591]
[1755156052419,0.08496325,121710.0,121700.0,1.40952113]
[1755156052830,0.08496325,121710.0,121700.0,1.40866113]
[1755156054588,0.08496325,121710.0,121700.0,1.28122113]
[1755156054809,0.08496325,121710.0,121700.0,1.40866113]
[1755156057528,0.09006325,121710.0,121700.0,1.28122113]
[1755156057759,0.09006325,121710.0,121700.0,1.3247567]
[1755156058402,0.09006325,121710.0,121700.0,1.3261367]
[1755156058820,0.09006325,121710.0,121700.0,1.3247567]
[1755156059023,0.08496325,121710.0,121700.0,1.3261367]
[1755156059229,0.08496325,121710.0,121700.0,1.40862113]
[1755156059435,0.08496325,121710.0,121700.0,1.28122113]
[1755156059639,0.08496325,121710.0,121700.0,1.40862113]
[1755156060686,0.08496325,121710.0,121700.0,1.28122113]
[1755156060902,0.08496325,121710.0,121700.0,1.40862113]
[1755156061549,0.09006325,121710.0,121700.0,0.19771339]
[1755156061756,0.34395599,121710.0,121700.0,0.19771339]
[1755156061968,0.35931466,121710.0,121700.0,0.19771339]
[1755156062401,0.35931466,121710.0,121700.0,0.32511339]
[1755156062616,0.41167731,121710.0,121700.0,0.32511339]
[1755156062784,0.41167731,121710.0,121700.0,0.32411339]
[1755156063023,0.41267865,121710.0,121700.0,0.32411339]
[1755156063231,0.41367865,121710.0,121700.0,0.32411339]
[1755156063488,0.41267865,121710.0,121700.0,0.32411339]
[1755156063704,0.41167865,121710.0,121700.0,0.32411339]
[1755156063903,0.41367865,121710.0,121700.0,0.32411339]
[1755156064313,0.90898343,121710.0,121700.0,0.32411339]
[1755156064543,0.41367865,121710.0,121700.0,0.32411339]
[1755156064751,0.41567865,121710.0,121700.0,0.32411339]
[1755156064947,0.91098343,121710.0,121700.0,0.32411339]
[1755156065185,0.91098343,121710.0,121700.0,0.19671339]
[1755156065391,0.34883094,121710.0,121700.0,0.32411339]
[1755156069494,0.29646829,121710.0,121700.0,0.32411339]
[1755156069696,0.29646829,121710.0,121700.0,0.19671339]
[1755156069697,0.30446829,121710.0,121700.0,0.19671339]
[1755156069880,0.30446829,121710.0,121700.0,0.32411339]
[1755156071147,0.30443332,121710.0,121700.0,0.32411339]
[1755156072723,0.30443332,121710.0,121700.0,0.81941817]
[1755156075130,0.30443332,121710.0,121700.0,0.32411339]
[1755156076295,0.28171332,121710.0,121700.0,0.81941817]
[1755156076884,0.26638828,121710.0,121700.0,0.81941817]
[1755156077023,0.26638828,121710.0,121700.0,0.32411339]
[1755156077228,0.28170159,121710.0,121700.0,0.32411339]
[1755156078464,0.54370159,121710.0,121700.0,0.32411339]
[1755156079098,0.52838828,121710.0,121700.0,0.81941817]
[1755156079491,0.52838828,121710.0,121700.0,0.69201817]
[1755156079887,0.52638828,121710.0,121700.0,0.81941817]
[1755156080417,0.52738828,121710.0,121700.0,0.81941817]
[1755156080834,0.52738828,121710.0,121700.0,0.82079817]
[1755156081205,0.52538828,121710.0,121700.0,0.82079817]
[1755156081421,0.52638828,121710.0,121700.0,0.82079817]
[1755156081832,0.35996325,121710.0,121700.0,0.69339817]
[1755156082060,0.35696325,121710.0,121700.0,0.89305169]
[1755156082293,0.09496325,121710.0,121700.0,0.82079817]
[1755156082503,0.09496325,121710.0,121700.0,0.69339817]
[1755156082698,0.09496325,121710.0,121700.0,0.19809339]
[1755156082932,0.09396325,121710.0,121700.0,0.82079817]
[1755156083112,0.09296325,121710.0,121700.0,0.82079817]
[1755156084306,0.09296325,121710.0,121700.0,0.32549339]
[1755156084506,0.09296325,121710.0,121700.0,0.82079817]
[1755156086976,0.09296325,121710.0,121700.0,0.32549339]
[1755156087189,0.09828325,121710.0,121700.0,0.32549339]
[1755156087412,0.09828325,121710.0,121700.0,0.19809339]
[1755156087613,0.09828325,121710.0,121700.0,0.32407339]
[1755156087814,0.09828325,121710.0,121700.0,0.81937817]
[1755156088869,0.09828325,121710.0,121700.0,0.69201817]
[1755156089015,0.09828325,121710.0,121700.0,0.81937817]
[1755156089216,0.09828325,121710.0,121700.0,0.69201817]
[1755156089535,0.26260828,121710.0,121700.0,0.32407339]
[1755156089756,0.27793678,121710.0,121700.0,0.32407339]
[1755156090149,0.26260828,121710.0,121700.0,0.32407339]
[1755156090383,0.09828325,121710.0,121700.0,0.32407339]
[1755156090583,0.09828325,121710.0,121700.0,0.81937817]
[1755156090750,0.09028325,121710.0,121700.0,0.40655782]
[1755156090958,0.09028325,121710.0,121700.0,0.32407339]
[1755156091811,0.09028325,121710.0,121700.0,0.81937817]
[1755156092173,0.09028325,121710.0,121700.0,0.82075817]
[1755156092406,0.08817325,121710.0,121700.0,0.82075817]
[1755156092810,0.09028325,121710.0,121700.0,0.82075817]
[1755156093004,0.09028325,121710.0,121700.0,0.81937817]
[1755156094012,0.25460828,121710.0,121700.0,0.69201817]
[1755156094217,0.26996547,121710.0,121700.0,0.81937817]
[1755156094615,0.26996547,121710.0,121700.0,0.32407339]
[1755156095358,0.26997253,121710.0,121700.0,0.32407339]
[1755156095710,0.26997253,121710.0,121700.0,0.81937817]
[1755156095843,0.27797253,121710.0,121700.0,0.81937817]
[1755156096942,0.27797253,121710.0,121700.0,0.19671339]
[1755156097142,0.27797253,121710.0,121700.0,0.32407339]
[1755156097353,0.36045696,121710.0,121700.0,0.32407339]
[1755156099323,0.27797253,121710.0,121700.0,0.32407339]
[1755156099942,0.27897253,121710.0,121700.0,0.32407339]
[1755156100368,0.27997253,121710.0,121700.0,0.32407339]
[1755156100949,0.27997978,121710.0,121700.0,0.32407339]
[1755156101406,0.27197978,121710.0,121700.0,0.32407339]
[1755156101601,0.34180895,121710.0,121700.0,0.32407339]
[1755156102167,0.60380895,121710.0,121700.0,0.32407339]
[1755156102358,0.60380895,121710.0,121700.0,0.19671339]
[1755156102559,0.60380895,121710.0,121700.0,0.32407339]
[1755156102995,0.84511373,121710.0,121700.0,0.19671339]
[1755156103201,0.86874373,121710.0,121700.0,0.32407339]
[1755156103644,0.86874373,121710.0,121700.0,0.19671339]
[1755156103845,0.86874373,121710.0,121700.0,0.12736]
[1755156104052,0.37343895,121710.0,121700.0,0.12736]
[1755156106046,0.39808695,121710.0,121700.0,0.12736]
[1755156112677,0.89339173,121710.0,121700.0,0.12736]
[1755156115140,0.16433853,121700.0,121690.0,0.029137]
[1755156115479,0.31901883,121700.0,121690.0,0.156497]